Cogmind - Beta 13 @@@ ROGUE MODE // 2024.04.23 @ 18:43:48 Player: Elliott Result: Destroyed by Y-45 Defender with Beam Rifle Performance ------------- Evolutions (2) 1000 Regions Visited (5) 1000 Robots Destroyed (12) 60 Value Destroyed (545) 545 Prototype IDs (0) 0 Alien Tech Used (0) 0 Bonus (0) 0 TOTAL SCORE: 2605 Bonus ------- None Cogmind --------- Core Integrity 0/550 Matter 300/300 Energy 100/100 System Corruption 6% Temperature Cool (9) Movement Hovering (60) Location -8/Materials Parts ------- > --- POWER (1) -------- (None) > --- PROPULSION (4) --- Airjet > --- UTILITY (4) ------ Advanced Weight Redist. System > --- WEAPON (2) ------- (None) > --- INVENTORY (5) ---- Small Storage Unit Transport Network Coupler Advanced Targeting Computer Rocket Launcher Datajack Peak State ------------ > --- POWER ------------ Light Nuclear Core > --- PROPULSION ------- Aluminum Leg Aluminum Leg Aluminum Leg Titanium Leg > --- UTILITY ---------- Small Storage Unit Advanced Weight Redist. System Advanced Weight Redist. System Power Shielding > --- WEAPON ----------- High-powered Shotgun Katana > --- INVENTORY -------- Aluminum Leg Airjet Advanced Weight Redist. System Transport Network Coupler Advanced Targeting Computer Rocket Launcher Datajack [Rating: 24] Favorites ----------- Power Ion Engine Engine Ion Engine Power Core Light Nuclear Core Propulsion Aluminum Leg Leg Aluminum Leg Hover Unit Airjet Utility Small Storage Unit Device Advanced Weight Redist. System Storage Small Storage Unit Processor Terrain Scan Processor Protection Power Shielding Weapon Light Assault Rifle Energy Gun Small Laser Ballistic Gun Light Assault Rifle Impact Weapon Heavy Mace Slashing Weapon Katana Build | -11 -10 -10 -10 -9 -8 ------- Run | Yrd Mat Min Exi Min Mat Slots Evolved 4 | . . . . . 4 Power . | . . . . . . Propulsion 2 | . . . . . 2 Utility 2 | . . . . . 2 Weapon . | . . . . . . Parts Attached 29 | 6 3 . . 1 19 Power 2 | 1 . . . . 1 Engine 1 | 1 . . . . . Core 1 | . . . . . 1 Reactor . | . . . . . . Propulsion 12 | 2 1 . . . 9 Treads . | . . . . . . Leg 11 | 2 1 . . . 8 Wheel . | . . . . . . Hover 1 | . . . . . 1 Flight . | . . . . . . Utility 6 | 1 . . . 1 4 Device 3 | . . . . . 3 Storage 1 | 1 . . . . . Processor 1 | . . . . 1 . Hackware . | . . . . . . Protection 1 | . . . . . 1 Artifact . | . . . . . . Weapon 9 | 2 2 . . . 5 Energy Gun 1 | . . . . . 1 Energy Cannon . | . . . . . . Ballistic Gun 6 | 2 2 . . . 2 Ballistic Cannon . | . . . . . . Launcher . | . . . . . . Special Weapon . | . . . . . . Impact Weapon 1 | . . . . . 1 Slashing Weapon 1 | . . . . . 1 Piercing Weapon . | . . . . . . Special Melee Weapon . | . . . . . . Unidentified Prototypes . | . . . . . . Parts Lost 10 | . . . . . 10 Power 1 | . . . . . 1 Propulsion 4 | . . . . . 4 Utility 3 | . . . . . 3 Weapon 2 | . . . . . 2 Highest Loss Streak 6 | . . . . . 6 To Critical Strikes . | . . . . . . Average Slot Usage (%) 85 | . 84 85 85 93 84 Engine 8 | . 14 14 14 14 3 Core 2 | . . . . . 4 Leg 26 | . 28 28 28 28 26 Device 5 | . . . . . 10 Storage 11 | . 14 14 14 14 8 Processor 3 | . . . . 8 4 Protection 4 | . . . . . 9 Ballistic Gun 17 | . 27 28 28 28 8 Slashing Weapon 3 | . . . . . 7 Naked Turns . | . . . . . . Heaviest Build 16 | 13 13 13 13 13 16 Greatest Support 49 | 20 20 20 20 20 49 Greatest Overweight (x) 1 | . 1 . . . 1 Average Overweight (x) . | . . . . . . Largest Inventory Capacity 8 | 8 8 8 8 8 8 Average Capacity 7 | 6 8 8 8 8 7 Most Carried 8 | 2 3 3 3 5 8 Average Carried 4 | . 2 3 3 3 5 Final Capacity 8 | 8 8 8 8 8 5 Final Carried 5 | 2 3 3 3 5 5 Class Distribution -------------------- 82% | Mutant 17% | Scavenger-Mutant Dominant Class ---------------- Mutant | -10/Materials Mutant | -10/Mines Mutant | -10/Exiles Mutant | -9/Mines Mutant | -8/Materials Resources | -11 -10 -10 -10 -9 -8 ----------- Run | Yrd Mat Min Exi Min Mat Matter Collected 502 | 100 89 . . 93 220 Remotely . | . . . . . . Salvage Created 599 | . 47 . . . 552 Parts 39 | . 3 . . . 36 Haulers Intercepted . | . . . . . . Recyclers Shooed . | . . . . . . Parts Field Recycled . | . . . . . . Retrieved Matter . | . . . . . . Parts Self-Destructed . | . . . . . . Prevented . | . . . . . . Kills | -11 -10 -10 -10 -9 -8 ------- Run | Yrd Mat Min Exi Min Mat Combat Hostiles Destroyed 12 | . 1 . . . 11 Melee 9 | . . . . . 9 Guns 2 | . 1 . . . 1 Classes Destroyed 2 | . 1 . . . 1 Grunt 9 | . 1 . . . 8 Sentry 3 | . . . . . 3 Best Kill Streak 3 | . 1 . . . 3 Combat Bots Only 3 | . 1 . . . 3 Max Kills in Single Turn 1 | . 1 . . . 1 Gunslinging . | . . . . . . Exploded . | . . . . . . Melee 1 | . . . . . 1 Uniques/NPCs Destroyed . | . . . . . . Combat | -11 -10 -10 -10 -9 -8 -------- Run | Yrd Mat Min Exi Min Mat Hostile Shots Fired 104 | . 1 . . . 103 Missed 34 | . 1 . . . 33 Damage Taken 1604 | . . . . . 1604 Core 551 | . . . . . 551 Absorbed by Shields . | . . . . . . Redirected to Shielding 28 | . . . . . 28 Core Remaining (%) 100 | 100 . . . 100 . Volleys Fired 8 | . 2 . . . 6 Largest 2 | . 2 . . . 1 Hottest 40 | . 40 . . . 25 Shots Fired 10 | . 4 . . . 6 Gun 10 | . 4 . . . 6 Cannon . | . . . . . . Launcher . | . . . . . . Special . | . . . . . . Kinetic 10 | . 4 . . . 6 Thermal . | . . . . . . Explosive . | . . . . . . Electromagnetic . | . . . . . . Robot Hit Streak 5 | . 2 . . . 5 Robot Miss Streak 3 | . 1 . . . 3 Penetration Max . | . . . . . . Secondary Targets . | . . . . . . Shots Hit Robots 46 | . 2 . . . 44 Core Hits 21 | . 1 . . . 20 Critical Kills . | . . . . . . Critical Parts Destroyed 1 | . . . . . 1 Critical Strikes 4 | . . . . . 4 Destroy 1 | . . . . . 1 Sever 3 | . . . . . 3 Melee Attacks 51 | . . . . . 51 Impact 4 | . . . . . 4 Slashing 47 | . . . . . 47 Piercing . | . . . . . . Sneak Attacks . | . . . . . . Combat Hostiles . | . . . . . . Follow-up Attacks . | . . . . . . Damage Inflicted 1227 | . 24 . . . 1203 Guns 115 | . 24 . . . 91 Cannons . | . . . . . . Explosions . | . . . . . . Melee 1088 | . . . . . 1088 Ramming 24 | . . . . . 24 Kinetic 115 | . 24 . . . 91 Thermal . | . . . . . . Explosive . | . . . . . . Electromagnetic . | . . . . . . Impact 152 | . . . . . 152 Slashing 936 | . . . . . 936 Piercing . | . . . . . . Highest Corruption 6 | . . . . . 6 Average Corruption 1 | . . . . . 1 Corruption Purged . | . . . . . . Corruption Blocked . | . . . . . . Effects 4 | . . . . . 4 Matter Fused 2 | . . . . . 2 Energy Discharges 1 | . . . . . 1 Data Loss (minor) 1 | . . . . . 1 Overload Shots . | . . . . . . Overflow Damage 37 | . . . . . 37 Projectiles . | . . . . . . Explosions . | . . . . . . Melee 37 | . . . . . 37 Knockbacks . | . . . . . . Impact . | . . . . . . Kinetic . | . . . . . . Secondary . | . . . . . . Self-Inflicted Damage 11 | . . . . . 11 Shots . | . . . . . . Rammed 11 | . . . . . 11 Targets Rammed 11 | . . . . . 11 Kicked . | . . . . . . Crushed . | . . . . . . Highest Temperature 3 | . . . . . 3 Average Temperature 2 | . . . . . 2 Received Heat Transfer 531 | . . . . . 531 Siege Activations . | . . . . . . Robots Corrupted . | . . . . . . Combat Hostiles . | . . . . . . Parts Fried 1 | . . . . . 1 Impact Corruptions 2 | . . . . . 2 Robots Melted . | . . . . . . Combat Hostiles . | . . . . . . Parts Melted . | . . . . . . Heat Transferred . | . . . . . . Parts Sabotaged . | . . . . . . Parts Stolen . | . . . . . . Parts Stripped . | . . . . . . Power Chain Reactions . | . . . . . . Alert | -11 -10 -10 -10 -9 -8 ------- Run | Yrd Mat Min Exi Min Mat Peak Influence 210 | . 45 17 . . 210 Initial 17 | . . 17 . . . Average 51 | . 22 17 . . 76 Maximum Alert Level 1 | . . . . . 1 Low Security (%) 97 | 100 100 100 . 100 96 Level 1 2 | . . . . . 3 Level 2 . | . . . . . . Level 3 . | . . . . . . Level 4 . | . . . . . . Level 5 . | . . . . . . High Security . | . . . . . . Max Security . | . . . . . . Squads Dispatched 5 | . 1 . . . 4 Investigation 1 | . . . . . 1 Extermination . | . . . . . . Reinforcement 4 | . 1 . . . 3 Assault . | . . . . . . Garrison . | . . . . . . Intercept . | . . . . . . Searches Triggered . | . . . . . . Construction Impeded . | . . . . . . Haulers Reinforced . | . . . . . . Active Scanning Responses . | . . . . . . Cargo Convoy Interrupts . | . . . . . . Stealth | -11 -10 -10 -10 -9 -8 --------- Run | Yrd Mat Min Exi Min Mat Distress Signals 1 | . . . . . 1 Communications Jammed . | . . . . . . Distress Signals . | . . . . . . Times Spotted 25 | . 2 . . . 23 Peak Tracking Total 5 | . 1 . . . 5 Tactical Retreats 4 | . . . . . 4 Traps | -11 -10 -10 -10 -9 -8 ------- Run | Yrd Mat Min Exi Min Mat Traps Triggered 2 | . 1 . . . 1 Indirectly . | . . . . . . Trap Hack Attempts . | . . . . . . Triggered . | . . . . . . Disarmed . | . . . . . . Reprogrammed . | . . . . . . Reused . | . . . . . . Traps Extracted . | . . . . . . Installed . | . . . . . . Triggered . | . . . . . . Machines | -11 -10 -10 -10 -9 -8 ---------- Run | Yrd Mat Min Exi Min Mat Machines Disabled . | . . . . . . Max in Single Turn . | . . . . . . Machines Repaired . | . . . . . . Machines Dismantled . | . . . . . . Machines Sabotaged . | . . . . . . Overloaded Fab Kills . | . . . . . . Hacking | -11 -10 -10 -10 -9 -8 --------- Run | Yrd Mat Min Exi Min Mat Machines Accessed 2 | . . . 1 . 1 Terminals . | . . . . . . Fabricators . | . . . . . . Repair Stations . | . . . . . . Recycling Units . | . . . . . . Scanalyzers 1 | . . . . . 1 Garrison Access . | . . . . . . Total Hacks 31 | . . . 23 . 8 Successful 31 | . . . 23 . 8 Failed . | . . . . . . Catastrophic . | . . . . . . Database Lockouts . | . . . . . . Manual . | . . . . . . Terminals . | . . . . . . Fabricators . | . . . . . . Repair Stations . | . . . . . . Recycling Units . | . . . . . . Scanalyzers 8 | . . . . . 8 Garrison Access . | . . . . . . Terminal Hacks 23 | . . . 23 . . Record 23 | . . . 23 . . Fabricator Hacks . | . . . . . . Repair Station Hacks . | . . . . . . Recycling Unit Hacks . | . . . . . . Scanalyzer 8 | . . . . . 8 Insert Component 3 | . . . . . 3 Analyze 5 | . . . . . 5 Garrison Access Hacks . | . . . . . . Unauthorized Hacks . | . . . . . . Terminals . | . . . . . . Fabricators . | . . . . . . Repair Stations . | . . . . . . Recycling Units . | . . . . . . Scanalyzers . | . . . . . . Garrison Access . | . . . . . . Data Cores Recovered . | . . . . . . Used . | . . . . . . Hacking Detections 1 | . . . . . 1 Full Trace Events 1 | . . . . . 1 Feedback Events . | . . . . . . Feedback Blocked . | . . . . . . Robot Schematics Acquired . | . . . . . . Robots Built . | . . . . . . Authchips . | . . . . . . Time . | . . . . . . Total Robot Build Rating . | . . . . . . Part Schematics Acquired 2 | . . . . . 2 Parts Built . | . . . . . . Authchips . | . . . . . . Time . | . . . . . . Total Part Build Rating . | . . . . . . Parts Repaired . | . . . . . . Time . | . . . . . . Parts Recycled . | . . . . . . Recycled Matter . | . . . . . . Retrieved Matter . | . . . . . . Retrieved Components . | . . . . . . Parts Scanalyzed 2 | . . . . . 2 Part Schematics Acquired 2 | . . . . . 2 Parts Damaged 1 | . . . . . 1 Bothacking | -11 -10 -10 -10 -9 -8 ------------ Run | Yrd Mat Min Exi Min Mat Used RIF Installer . | . . . . . . Robots Hacked . | . . . . . . Non-combat . | . . . . . . Combat . | . . . . . . Robot Hacks Applied . | . . . . . . Relay Couplers Released . | . . . . . . Fabnet Peak Effective % . | . . . . . . Robots Rewired . | . . . . . . Allies Hacked . | . . . . . . Hacks Repelled . | . . . . . . Allies | -11 -10 -10 -10 -9 -8 -------- Run | Yrd Mat Min Exi Min Mat Total Allies . | . . . . . . Largest Group . | . . . . . . Highest-Rated Group . | . . . . . . Highest-Rated Ally . | . . . . . . Total Orders . | . . . . . . Ally Attacks . | . . . . . . Total Damage . | . . . . . . Kills . | . . . . . . Allies Corrupted . | . . . . . . Allies Melted . | . . . . . . Intel | -11 -10 -10 -10 -9 -8 ------- Run | Yrd Mat Min Exi Min Mat Robot Analysis Total . | . . . . . . Derelict Logs Recovered . | . . . . . . Drone Launches . | . . . . . . Drone Recoveries . | . . . . . . Exploration | -11 -10 -10 -10 -9 -8 ------------- Run | Yrd Mat Min Exi Min Mat Turns Passed 1781 | 54 179 52 303 260 933 Spaces Moved 1273 | 42 130 44 253 214 590 Core 10 | 10 . . . . . Treads . | . . . . . . Legs 1191 | 32 130 44 253 214 518 Wheels . | . . . . . . Hover 72 | . . . . . 72 Flight . | . . . . . . Fastest Speed 50 | 50 120 120 120 120 60 Average Speed 116 | 103 120 120 120 120 114 Slowest Speed 190 | 120 190 120 120 120 190 Overloaded Moves . | . . . . . . Propulsion Burnouts . | . . . . . . Robots Hopped . | . . . . . . Cave-ins Triggered . | . . . . . . Exploration Rate (%) 34 | 4 18 13 57 76 36 Regions Visited 5 Branch Regions 3 Pre-discovered Areas 1 | . . . 1 . . Known Exits Taken . | . . . . . . Unknown Exits Taken 5 | 1 1 1 1 1 . Scrap Searched 2 | . . . . 2 . Spaces Dug . | . . . . . . Terrain Destroyed . | . . . . . . Melee . | . . . . . . Projectile . | . . . . . . AOE . | . . . . . . Terrain Rammed . | . . . . . . Walls Destroyed . | . . . . . . Machines Disabled . | . . . . . . Actions | -11 -10 -10 -10 -9 -8 --------- Run | Yrd Mat Min Exi Min Mat Total 1478 | 49 147 43 252 216 771 Wait 79 | . 12 . . . 67 Move 1268 | 41 129 43 252 213 590 Hop . | . . . . . . Pick Up 11 | 2 1 . . 2 6 Fast Attach 19 | 6 3 . . 1 9 Attach 4 | . . . . . 4 Detach 7 | . . . . . 7 Swap 6 | . . . . . 6 Drop 14 | . . . . . 14 Fire 8 | . 2 . . . 6 Melee 51 | . . . . . 51 Ram 11 | . . . . . 11 Kick . | . . . . . . Crush . | . . . . . . Escape Stasis . | . . . . . . Rewire . | . . . . . . Trap . | . . . . . . Miscellaneous . | . . . . . . Route ------- -11/Scrapyard -10/Materials -10/Mines -10/Exiles (discovered 2 exits: [*Min x2]) -9/Mines (discovered 2 exits: *Mat x2) -8/Materials History --------- Turn | Location | Event 5 | -11/Scrapyard | Discovered new exit (range 16) 55 | -11/Scrapyard | Entered Materials 88 | -10/Materials | Discovered new exit (range 12) 215 | -10/Materials | Met 8R-AWN 234 | -10/Materials | Entered Mines 236 | -10/Mines | Followed 8R-AWN into the Mines 279 | -10/Mines | Discovered new exit (range 5) 286 | -10/Mines | Entered Exiles 300 | -10/Exiles | Build established: Mutant 315 | -10/Exiles | Discovered new exit (range 15) 337 | -10/Exiles | Welcomed by 8R-AWN 361 | -10/Exiles | Met EX-HEX 462 | -10/Exiles | Met EX-DEC 498 | -10/Exiles | Learned location of Zion (-7) 565 | -10/Exiles | Discovered new exit (range 15) 589 | -10/Exiles | Entered Mines 645 | -9/Mines | Discovered new exit (range 11) 780 | -9/Mines | Received a Rocket Launcher from a helpful Derelict 803 | -9/Mines | Discovered new exit (range 15) 849 | -9/Mines | Entered Materials 849 | -8/Materials | Evolved 4 slots: Propulsion x2, Utility x2 1446 | -8/Materials | Build established: Scavenger-Mutant 1706 | -8/Materials | Core integrity fell below 50% 1717 | -8/Materials | Core integrity fell below 20% 1726 | -8/Materials | Lost 6 parts (1p2n2u1w) 1760 | -8/Materials | Build established: Mutant 1782 | -8/Materials | Destroyed by Y-45 Defender with Beam Rifle Last Messages --------------- U-05 Engineer builds a Wall. Lgt. Nuclear Core destroyed. Knocked back. Penetrated by Slug. Knocked back. H-61 Shepherd destroyed. G-47 Trooper destroyed. Acquired 34 matter. Aluminum Leg destroyed. G-47 Trooper destroyed. Katana destroyed. Slammed into G-47 Trooper. Critical hit (Burn: +37). Slammed into G-47 Trooper. Destabilizing: Core damaged (-11). Slammed into G-47 Trooper. Power Shielding destroyed. System corrupted by crushing effect (+5). Slammed into G-47 Trooper. Slammed into Y-45 Defender. Map ----- +----------------------------------------------------+ | ????????????????????????????????? | | ????????????????????????????????? | | ????????????????????????????????? | | ????????????????????????????????? | | ????????????????????????????????? | | ????????????????????????????????? | | ????????????????????????????????? | | ????????????????????????????????? | | ????????????????????????????????? | | ????????????????????????????????? | | ????????????????????????????????? | | ??????????????????????????????? ? | | ??????????????????????????????? ? | | ?????????????????????????????"" ? | | ?????????????????????????????"" ? | | ????????????????????????????? ? | | ????????????????????????????? ? | | ?????????????????????????????#+#? | | ???????????????????????????### ## | | ???????????????????????????# | | ???????????????????????????# | | ???????????????????????????# T | | ???????????????????????????# % | | ???????????????????????????# | | ????####### #????????????## # | | ????#%%g@Y a #????????????## # | | ????#%##### #?????????????# !# | | ????#%#?????????????????????# !!# | | ????#%#???????????###########%!!# | | ????#%#???????????# #!!%# | | ????# #???????????# [ #%!=# | | ????# #???????????# #!|=# | | ????# #???????????# # %%# | | ????# #???????????# # # | | ????#*#???????????# + # | | ????#%#???????????# # # | | ????#[#???????????# # # | | ????#!#???################### # | | ????# #???# | | ????# #???# | | ????# #???# | | ????# #???####/############ | | ????# ######! #???????# | | ????# =%+* #???????#[[==!! | | ????# ######= "" #???????#[[==!! | | ????# #??# + S"" #???????####### | | ????# #??# # "" #????????????#? | | ??###+#### # #?????????????? | | ?# # ########?????????????? | | ?# # #????????????????????? | +----------------------------------------------------+ Best States ------------- Heat Dissipation 31 Energy Generation 14 Energy Capacity 250 Matter Stores 300 Matter Capacity 300 Sight Range 16 Terrain Scan Density 85 Additional Mass Support 9 Power Shielding 33 Evasion (%) 55 Item Schematics ----------------- Sml. Laser | -8/Materials | Scanalyzed Lgt. Ion Engine | -8/Materials | Scanalyzed Robot Schematics ------------------ None Fabricated ------------ Nothing Alien Tech Used ----------------- None Achievements -------------- Tourist Challenges ------------ None Game ------ Seed GravityRemoteWeb Manual? 0 Play Time 00:14:02 Cumulative 6.1 hours Start 2024.04.23 @ 18:30:47 End 2024.04.23 @ 18:43:48 Sessions 1 Manual Loads 0 Difficulty Rogue Special Mode None Game No. 15 Rogue 15 Adventurer 0 Explorer 0 Win Type - Total 0 Types 0/0/0/0/0/0/0/0/0 Lore% 5 Gallery% 14 Achievement% 13 Wizard Run 0 Options --------- Layout 1 ASCII 0 Keyboard 0 Movement Arrows Keybinds 0 Fullscreen 1 Font 48/Terminus Map View 50x35 Zoom Use 0% Tactical HUD 0 Map Filters NONE Filters NONE Steam 1 RUN: dc65587f-f003-4894-9fdd-7cd940b8f079